bitfinex/quotes_BTCUSD_20250225
["timestamp","ask_amount","ask_price","bid_price","bid_amount"]
[1740506061149,0.1736158,87251.0,87250.0,0.2]
[1740506061371,0.229219,87253.0,87252.0,0.1]
[1740506061372,0.1757014,87253.0,87252.0,0.1]
[1740506061955,0.0008484,87261.0,87241.0,0.1]
[1740506062153,0.0008484,87261.0,87237.0,0.1]
[1740506062353,0.0008484,87261.0,87241.0,0.1]
[1740506062354,0.171935,87242.0,87241.0,0.1]
[1740506063283,0.171935,87242.0,87241.0,0.2]
[1740506064273,0.171935,87242.0,87241.0,0.1]
[1740506064938,0.171935,87242.0,87241.0,0.2]
[1740506065969,0.171935,87242.0,87241.0,0.1]
[1740506066631,0.171935,87242.0,87241.0,0.2]
[1740506067242,0.171935,87242.0,87241.0,0.21454085]
[1740506070070,0.229233,87248.0,87247.0,0.1]
[1740506070071,0.401156,87248.0,87247.0,0.1]
[1740506070270,0.401156,87248.0,87247.0,0.21454085]
[1740506070486,0.171923,87248.0,87247.0,0.23599494]
[1740506070689,0.171921,87249.0,87248.0,0.21454085]
[1740506070894,0.229222,87252.0,87248.0,0.21454085]
[1740506071096,0.401137,87252.0,87251.0,0.21454085]
[1740506072392,0.0008484,87261.0,87251.0,0.21454085]
[1740506072393,0.0008484,87261.0,87253.0,0.2]
[1740506072541,0.1727464,87261.0,87260.0,0.2]
[1740506072985,0.1727464,87261.0,87260.0,0.21454085]
[1740506073215,0.0008484,87261.0,87260.0,0.23599494]
[1740506074198,0.1727464,87261.0,87260.0,0.23599494]
[1740506074397,0.0008484,87261.0,87260.0,0.23599494]
[1740506076194,0.0008484,87261.0,87260.0,0.40789494]
[1740506076428,0.0008484,87261.0,87260.0,0.63409494]
[1740506076628,0.0008484,87261.0,87260.0,0.47594247]
[1740506076810,0.0008484,87261.0,87260.0,0.74784247]
[1740506077209,0.0008484,87261.0,87260.0,0.47594247]
[1740506077430,0.0008484,87261.0,87260.0,0.53409494]
[1740506077636,0.0008484,87261.0,87260.0,0.63717384]
[1740506077877,0.0008484,87261.0,87260.0,0.45395384]
[1740506077999,0.0008484,87261.0,87260.0,0.46427384]
[1740506078408,0.0008484,87261.0,87260.0,0.63617384]
[1740506078608,0.0008484,87261.0,87260.0,0.46427384]
[1740506078814,0.0008484,87261.0,87260.0,0.56427384]
[1740506079215,0.0008484,87261.0,87260.0,0.25395384]
[1740506079474,0.1727464,87261.0,87260.0,0.16219494]
[1740506079636,0.0018484,87261.0,87260.0,0.36819494]
[1740506080422,0.0008484,87261.0,87260.0,0.16219494]
[1740506080624,0.0018484,87261.0,87260.0,0.26919494]
[1740506081050,0.0018484,87261.0,87260.0,0.36819494]
[1740506082698,0.1737464,87261.0,87260.0,0.36819494]
[1740506082911,0.0018484,87261.0,87260.0,0.36819494]
[1740506083139,0.0018484,87261.0,87260.0,0.22249494]
[1740506083140,0.1737464,87261.0,87260.0,0.22249494]
[1740506083320,0.0018484,87261.0,87260.0,0.32249494]
[1740506083471,0.0018484,87261.0,87260.0,0.24199494]
[1740506083830,0.1737464,87261.0,87260.0,0.24199494]
[1740506084163,0.1737464,87261.0,87260.0,0.14199494]
[1740506084385,0.1737464,87261.0,87260.0,0.24199494]
[1740506084898,0.1737464,87261.0,87260.0,0.14299494]
[1740506085255,0.1737464,87261.0,87260.0,0.24199494]
[1740506085527,0.1737464,87261.0,87260.0,0.106]
[1740506085782,0.1737464,87261.0,87260.0,3.007]
[1740506086025,0.1737464,87261.0,87260.0,3.12154085]
[1740506086240,0.1737464,87261.0,87260.0,3.007]
[1740506086473,0.1727464,87261.0,87260.0,3.199]
[1740506086716,0.1737464,87261.0,87260.0,3.107]
[1740506086934,0.1737464,87261.0,87260.0,3.199]
[1740506087137,0.1737464,87261.0,87260.0,3.1]
[1740506087339,0.1747464,87261.0,87260.0,3.007]
[1740506088366,0.1747464,87261.0,87260.0,1.940256]
[1740506088590,0.34197814,87261.0,87260.0,1.066748]
[1740506089349,0.20454914,87261.0,87242.0,0.1]
[1740506089566,0.171935,87242.0,87241.0,0.0016954]
[1740506091575,0.171935,87242.0,87241.0,0.0056954]
[1740506092939,0.171935,87242.0,87241.0,0.0016954]
[1740506094730,0.171935,87242.0,87241.0,0.0026954]
[1740506095991,0.171935,87242.0,87241.0,0.0016954]
[1740506097139,0.171935,87242.0,87241.0,0.11623625]
[1740506097341,0.229244,87244.0,87243.0,0.1]
[1740506097342,0.401177,87244.0,87243.0,0.1]
[1740506097564,0.401177,87244.0,87243.0,0.21354085]
[1740506100075,0.402177,87244.0,87243.0,0.21354085]
[1740506100865,0.172933,87244.0,87243.0,0.21354085]
[1740506101045,0.001,87244.0,87243.0,0.23506448]
[1740506102098,0.001,87244.0,87243.0,0.31476448]
[1740506102975,0.0008484,87261.0,87260.0,0.1]
[1740506103091,0.1727464,87261.0,87260.0,0.21354085]
[1740506103298,0.1727464,87261.0,87260.0,0.01454085]
[1740506103559,0.1727464,87261.0,87260.0,0.21354085]
[1740506103763,0.0008484,87261.0,87260.0,0.21354085]
[1740506103964,0.0008484,87261.0,87260.0,0.23389494]
[1740506104562,0.0018484,87261.0,87260.0,0.24089494]
[1740506105197,0.0018484,87261.0,87260.0,0.21954085]
[1740506107398,0.0018484,87261.0,87260.0,0.34094085]
[1740506108254,0.0018484,87261.0,87260.0,0.33394085]
[1740506108459,0.0018484,87261.0,87260.0,0.50584085]
[1740506108460,0.0008484,87261.0,87260.0,0.50584085]
[1740506108676,0.0018484,87261.0,87260.0,0.34094085]
[1740506108970,0.0018484,87261.0,87260.0,0.40222574]
[1740506111730,0.0018484,87261.0,87260.0,0.107]
[1740506111949,0.1737464,87261.0,87260.0,0.206]
[1740506112165,0.1737464,87261.0,87260.0,0.007]
[1740506112406,0.1737464,87261.0,87260.0,0.106]
[1740506112614,0.0018484,87261.0,87260.0,0.22054085]
[1740506112823,0.0018484,87261.0,87260.0,0.25052494]
[1740506113244,0.0018484,87261.0,87260.0,0.22054085]
[1740506113449,0.0018484,87261.0,87260.0,0.12154085]
[1740506113450,0.1737464,87261.0,87260.0,0.12154085]
[1740506113677,0.1737464,87261.0,87260.0,0.22054085]
[1740506113887,0.1737464,87261.0,87260.0,0.11454085]
[1740506113888,0.1727464,87261.0,87260.0,0.11454085]
[1740506114310,0.1727464,87261.0,87260.0,0.02054085]
[1740506114541,0.1727464,87261.0,87260.0,0.11454085]
[1740506114672,0.1727464,87261.0,87260.0,0.12054085]
[1740506115097,0.1727464,87261.0,87260.0,0.21954085]
[1740506116229,0.0008484,87261.0,87260.0,0.21954085]
[1740506117493,0.0008484,87261.0,87260.0,3.30024085]
[1740506118711,0.0008484,87261.0,87260.0,3.34964085]
[1740506119871,0.0008484,87261.0,87260.0,3.52154085]
[1740506120214,0.0008484,87261.0,87260.0,3.51554085]
[1740506120419,0.0008484,87261.0,87260.0,3.74314534]
[1740506120640,0.0008484,87261.0,87260.0,3.84914534]
[1740506121428,0.0008484,87261.0,87260.0,3.84314534]
[1740506121632,0.0016988,87273.0,87260.0,3.84314534]
[1740506121633,0.0016988,87273.0,87272.0,0.470876]
[1740506121839,0.0016988,87273.0,87272.0,0.68894438]
[1740506122049,0.0016988,87273.0,87272.0,0.7036975]
[1740506122609,0.0008478,87320.0,87287.0,0.370846]
[1740506122807,0.0008478,87320.0,87287.0,0.47188685]
[1740506123291,0.0008478,87320.0,87287.0,0.73073438]
[1740506123794,0.0008478,87320.0,87287.0,0.74201438]
[1740506123997,0.1726308,87320.0,87287.0,0.85587134]
[1740506124295,0.0008478,87320.0,87287.0,0.85587134]
[1740506124468,0.0008478,87320.0,87287.0,0.95587134]
[1740506124850,0.0008478,87320.0,87287.0,0.96187134]
[1740506125260,0.0008478,87320.0,87299.0,0.470823]
[1740506125498,0.0008478,87320.0,87299.0,0.82941138]
[1740506125642,0.0008478,87320.0,87299.0,0.8441645]
[1740506125999,0.0008478,87320.0,87299.0,1.1441645]
[1740506126208,0.0008478,87320.0,87306.0,0.650709]
[1740506126380,0.0008478,87320.0,87306.0,0.78479738]
[1740506126782,0.0008478,87320.0,87306.0,1.08479738]
[1740506126983,0.0008478,87320.0,87306.0,1.19865434]
[1740506127166,0.0008478,87320.0,87306.0,0.52784534]
[1740506127365,0.171786,87318.0,87306.0,0.1058]
[1740506127586,0.0008478,87320.0,87306.0,0.2048]
[1740506128165,0.0008478,87320.0,87306.0,0.22534085]
[1740506128372,0.0008478,87320.0,87306.0,0.12634085]
[1740506128592,0.0008478,87320.0,87306.0,0.21934085]
[1740506128791,0.0008478,87320.0,87306.0,0.24727494]
[1740506129196,0.229046,87319.0,87306.0,0.23273409]
[1740506129403,0.0008478,87320.0,87306.0,0.23273409]
[1740506129783,0.0008478,87320.0,87306.0,0.24727494]
[1740506130007,0.171789,87317.0,87306.0,0.14827494]
[1740506130181,0.171799,87311.0,87306.0,0.14827494]
[1740506130382,0.0008478,87320.0,87306.0,0.24147494]
[1740506130556,0.229045,87319.0,87306.0,0.14247494]
[1740506130766,0.229048,87318.0,87306.0,0.24147494]
[1740506130923,0.0008478,87320.0,87306.0,0.24147494]
[1740506131128,0.229072,87309.0,87306.0,0.11954085]
[1740506131364,0.1735058,87307.0,87306.0,0.21954085]
[1740506131584,0.0016988,87307.0,87306.0,0.21954085]
[1740506131931,0.1735058,87307.0,87306.0,0.006]
[1740506132376,0.0016988,87307.0,87306.0,0.23004085]
[1740506133267,0.17177,87326.0,87325.0,0.099]
[1740506133473,0.400798,87326.0,87325.0,0.11354085]
[1740506134222,0.17177,87326.0,87325.0,0.21354085]
[1740506134419,0.0008479,87327.0,87326.0,0.11454085]
[1740506134642,0.0008479,87327.0,87326.0,0.13734902]
[1740506135105,0.0008479,87327.0,87326.0,0.23634902]
[1740506136287,0.0008479,87327.0,87326.0,0.73321902]
[1740506136473,0.0008479,87327.0,87326.0,1.56556655]
[1740506136688,0.0008476,87330.0,87329.0,0.48530485]
[1740506136891,0.0008476,87330.0,87329.0,2.00735429]
[1740506137093,0.0008479,87339.0,87338.0,0.570746]
[1740506137094,0.00078978,87339.0,87338.0,0.570746]
[1740506137292,0.00078978,87339.0,87338.0,0.69903438]
[1740506138249,0.00078978,87339.0,87338.0,0.50603438]
[1740506138456,0.00078978,87339.0,87338.0,0.70503438]
[1740506138656,0.00078978,87339.0,87338.0,0.73834255]
[1740506141328,0.00078978,87339.0,87338.0,0.13930817]
[1740506141499,0.00078978,87339.0,87338.0,0.5301]
[1740506142110,0.17253378,87339.0,87338.0,0.105]
[1740506142284,0.00078978,87339.0,87338.0,0.205]
[1740506143079,0.00078978,87339.0,87338.0,0.199]
[1740506143317,0.00078978,87339.0,87338.0,0.21354085]
[1740506143494,0.00078978,87339.0,87338.0,0.43730437]
[1740506143695,0.00078978,87339.0,87338.0,0.25795572]
[1740506144103,0.00078978,87339.0,87338.0,0.26395572]
[1740506144303,0.17253378,87339.0,87338.0,0.21954085]
[1740506144505,0.00078978,87339.0,87338.0,0.21954085]
[1740506144719,0.00078978,87339.0,87338.0,0.22554085]
[1740506145056,0.00078978,87339.0,87338.0,0.21354085]
[1740506145435,0.00078978,87339.0,87338.0,0.38688941]
[1740506145603,0.00078978,87339.0,87338.0,0.49914381]
[1740506145815,0.00078978,87339.0,87338.0,0.71289134]
[1740506146018,0.00078978,87339.0,87338.0,1.67459134]
[1740506146705,0.00078978,87339.0,87338.0,1.58059134]
[1740506146922,0.00078978,87339.0,87338.0,1.67459134]
[1740506147164,0.00078978,87339.0,87338.0,1.68059134]
[1740506147379,0.00078978,87339.0,87338.0,1.50884534]
[1740506147541,0.00078978,87339.0,87338.0,0.4311]
[1740506147751,0.17253378,87339.0,87338.0,0.106]
[1740506147952,0.17253378,87339.0,87338.0,0.006]
[1740506148155,0.17253378,87339.0,87338.0,0.106]
[1740506148360,0.17253378,87339.0,87338.0,0.205]
[1740506148554,0.17253378,87339.0,87338.0,0.21954085]
[1740506148759,0.00078978,87339.0,87338.0,0.22695409]
[1740506149201,0.17253378,87339.0,87338.0,0.106]
[1740506149402,0.17253378,87339.0,87338.0,0.006]
[1740506149600,0.228986,87342.0,87341.0,0.199]
[1740506149807,0.400724,87342.0,87341.0,0.199]
[1740506150839,0.400724,87342.0,87341.0,0.205]
[1740506151151,0.400724,87342.0,87341.0,0.2251]
[1740506151386,0.400724,87342.0,87341.0,0.204]
[1740506151544,0.400724,87342.0,87341.0,0.105]
[1740506151896,0.400724,87342.0,87341.0,0.006]
[1740506153045,0.228978,87345.0,87333.0,0.099]
[1740506153244,0.171756,87333.0,87332.0,0.099]
[1740506153473,0.17364076,87342.0,87341.0,0.003]
[1740506153859,0.171738,87342.0,87341.0,0.003]
[1740506154880,0.0008478,87349.0,87346.0,0.092]
[1740506155227,0.0008478,87349.0,87341.0,0.004]
[1740506155228,0.171738,87342.0,87341.0,0.096]
[1740506155366,0.171738,87342.0,87341.0,0.1155]
[1740506155773,0.171738,87342.0,87341.0,0.004]
[1740506156201,0.17174,87341.0,87340.0,0.092]
[1740506157242,0.171746,87338.0,87337.0,0.191]
[1740506157823,0.171756,87333.0,87332.0,0.092]
[1740506159294,0.171756,87333.0,87332.0,0.191]
[1740506159553,0.17176,87331.0,87330.0,0.0016938]
[1740506160808,0.17476,87331.0,87330.0,0.0016938]
[1740506161209,0.17476,87331.0,87330.0,0.0036938]
[1740506161571,0.17176,87331.0,87330.0,0.0036938]
[1740506161727,0.17476,87331.0,87330.0,0.0046938]
[1740506162541,0.17476,87331.0,87330.0,0.0026938]
[1740506163572,0.171819,87301.0,87287.0,0.3251]
[1740506163766,0.171819,87301.0,87293.0,0.099]
[1740506164054,0.3293,87318.0,87307.0,0.092]
[1740506164199,0.171789,87316.0,87315.0,0.092]
[1740506165183,0.3293,87318.0,87309.0,0.092]
[1740506165389,0.171801,87310.0,87309.0,0.191]
[1740506166229,0.22905,87317.0,87305.0,0.092]
[1740506166230,0.171809,87306.0,87305.0,0.092]
[1740506166432,0.171817,87302.0,87301.0,0.10654085]
[1740506166612,0.171817,87302.0,87301.0,0.20554085]
[1740506167023,0.171817,87302.0,87301.0,0.099]
[1740506167341,0.171819,87301.0,87300.0,0.00455808]
[1740506167660,0.171819,87301.0,87300.0,0.19555808]
[1740506167830,0.171819,87301.0,87300.0,0.09655808]
[1740506168033,0.171819,87301.0,87300.0,0.00455808]
[1740506168385,0.2577266,87301.0,87300.0,0.00455808]
[1740506168663,0.171819,87301.0,87300.0,8e-08]
[1740506169400,0.171669,87301.0,87300.0,8e-08]
[1740506170434,0.175669,87301.0,87300.0,8e-08]
[1740506170885,0.171669,87301.0,87300.0,8e-08]
[1740506171088,0.177669,87301.0,87300.0,8e-08]
[1740506171294,0.006,87301.0,87297.0,0.092]
[1740506171510,0.006,87301.0,87300.0,0.20554085]
[1740506171718,0.0454,87326.0,87302.0,0.099]
[1740506171957,0.229033,87324.0,87302.0,0.099]
[1740506172190,0.3293,87331.0,87315.0,0.092]
[1740506172420,0.171789,87316.0,87315.0,0.191]
[1740506172552,0.3293,87338.0,87310.0,0.099]
[1740506172553,0.171799,87311.0,87310.0,0.099]
[1740506172883,0.34206469,87338.0,87302.0,0.09]
[1740506172884,0.171815,87303.0,87302.0,0.09]
[1740506173080,0.171815,87303.0,87302.0,0.099]
[1740506173283,0.229084,87305.0,87298.0,0.09]
[1740506173597,0.171811,87305.0,87304.0,0.188]
[1740506174107,0.229067,87311.0,87304.0,0.188]
[1740506174244,0.171799,87311.0,87310.0,0.089]
[1740506174973,0.171801,87310.0,87309.0,0.099]
[1740506175292,0.01124,87332.0,87310.0,0.089]
[1740506175533,0.171799,87311.0,87310.0,0.089]
[1740506175779,0.171801,87310.0,87309.0,0.099]
[1740506176031,0.171761,87310.0,87309.0,0.188]
[1740506176459,0.229054,87316.0,87309.0,0.099]
[1740506176697,0.171823,87299.0,87298.0,0.005]
[1740506176935,0.171823,87299.0,87298.0,0.094]
[1740506177177,0.229083,87305.0,87293.0,0.089]
[1740506177411,0.083743,87340.0,87310.0,0.0016936]
[1740506177552,0.171799,87311.0,87310.0,0.0016936]
[1740506178106,0.252099,87311.0,87310.0,6e-07]
[1740506178349,0.299999,87311.0,87310.0,6e-07]
[1740506178735,0.3994163,87311.0,87310.0,6e-07]
[1740506179620,0.3994163,87311.0,87310.0,0.0030006]
[1740506179845,0.3994163,87311.0,87310.0,6e-07]
[1740506180601,0.4064163,87311.0,87310.0,6e-07]
[1740506181073,0.3994163,87311.0,87310.0,6e-07]
[1740506181442,0.4064163,87311.0,87310.0,6e-07]
[1740506182761,0.3994163,87311.0,87310.0,6e-07]
[1740506182995,0.4064163,87311.0,87310.0,6e-07]
[1740506183582,0.3994163,87311.0,87310.0,6e-07]
[1740506183784,0.4064163,87311.0,87310.0,6e-07]
[1740506185087,0.178799,87311.0,87310.0,6e-07]
[1740506185318,0.178799,87311.0,87310.0,0.1880006]
[1740506185319,0.007,87311.0,87310.0,0.1880006]
[1740506185571,0.007,87311.0,87310.0,0.20254145]
[1740506186012,0.007,87311.0,87310.0,0.52764145]
[1740506186258,0.228995,87338.0,87333.0,0.099]
[1740506186509,0.0008478,87349.0,87333.0,0.181]
[1740506186752,0.0008478,87349.0,87337.0,0.089]
[1740506186983,0.0008478,87349.0,87345.0,0.091]
[1740506186984,0.17173,87346.0,87345.0,0.091]
[1740506187212,0.228969,87348.0,87345.0,0.18]
[1740506187437,0.1725718,87349.0,87348.0,0.18]
[1740506187669,0.0008478,87349.0,87348.0,0.18]
[1740506187941,0.0008478,87349.0,87348.0,0.198]
[1740506188190,0.0008478,87349.0,87348.0,0.21254085]
[1740506189561,0.0018478,87349.0,87348.0,0.21954085]
[1740506189811,0.0008478,87349.0,87348.0,1.32306685]
[1740506190094,0.0018478,87349.0,87348.0,1.43006685]
[1740506190339,0.0018478,87349.0,87348.0,1.47606685]
[1740506190539,0.0018478,87349.0,87348.0,1.48006685]
[1740506190981,0.0018478,87349.0,87348.0,1.58981438]
[1740506191744,0.0008478,87349.0,87348.0,1.58281438]
[1740506191906,0.0008478,87349.0,87348.0,1.58881438]
[1740506192367,0.0008478,87349.0,87348.0,1.58681438]
[1740506192800,0.0008478,87349.0,87348.0,1.58281438]
[1740506193053,0.0008478,87349.0,87348.0,1.59805438]
[1740506193276,0.0008478,87349.0,87348.0,1.60405438]
[1740506193993,0.0008478,87376.0,87375.0,0.089]
[1740506194349,0.0008478,87376.0,87375.0,0.52654085]
[1740506195449,0.0008478,87376.0,87375.0,0.78521385]
[1740506195682,0.0008478,87376.0,87375.0,0.83551385]
[1740506196142,0.0008478,87376.0,87375.0,0.66384085]
[1740506196391,0.0008478,87376.0,87375.0,0.65984085]
[1740506196636,0.0008478,87376.0,87375.0,0.52654085]
[1740506196834,0.0008478,87376.0,87375.0,0.53154085]
[1740506197068,0.0008478,87376.0,87375.0,0.432]
[1740506197223,0.0008478,87376.0,87375.0,0.53554085]
[1740506197652,0.0008478,87376.0,87375.0,0.44654085]
[1740506197836,0.1725188,87376.0,87375.0,0.5121]
[1740506198035,0.1725188,87376.0,87375.0,0.43264085]
[1740506198235,0.1725188,87376.0,87375.0,0.4181]
[1740506198441,0.1725188,87376.0,87375.0,0.5031]
[1740506198640,0.1725188,87376.0,87375.0,0.01454085]
[1740506198822,0.1725188,87376.0,87375.0,0.02454085]
[1740506199029,0.1725188,87376.0,87375.0,0.01]
[1740506199248,0.1725188,87376.0,87375.0,0.006]
[1740506199426,0.0008478,87376.0,87364.0,0.01454085]
[1740506199682,0.171679,87372.0,87371.0,0.089]
[1740506199813,0.171679,87372.0,87371.0,0.178]
[1740506200227,0.228898,87375.0,87356.0,0.3251]
[1740506200433,0.228898,87375.0,87358.0,0.01454085]
[1740506200744,0.171693,87365.0,87364.0,0.004]
[1740506200964,0.171693,87365.0,87364.0,0.093]
[1740506201385,0.171693,87365.0,87364.0,0.182]
[1740506201782,0.171693,87365.0,87364.0,0.178]
[1740506202371,0.171693,87365.0,87364.0,0.182]
[1740506202532,0.171693,87365.0,87364.0,0.178]
[1740506202734,0.171693,87365.0,87364.0,0.091]
[1740506203735,0.171693,87365.0,87364.0,0.002]
[1740506203959,0.171693,87365.0,87364.0,0.091]
[1740506205695,0.171693,87365.0,87364.0,0.002]
[1740506206037,0.171693,87365.0,87364.0,0.091]
[1740506206774,0.172693,87365.0,87364.0,0.089]
[1740506206967,0.172693,87365.0,87364.0,0.09]
[1740506207334,0.171693,87365.0,87364.0,0.09]
[1740506208100,0.2346461,87365.0,87364.0,0.001]
[1740506208239,0.171693,87365.0,87364.0,0.001]
[1740506208447,0.172693,87365.0,87364.0,0.001]
[1740506209322,0.17172,87351.0,87348.0,0.0016936]
[1740506209614,0.171724,87349.0,87348.0,6e-07]
[1740506209825,0.253224,87349.0,87348.0,6e-07]
[1740506211387,0.171724,87349.0,87348.0,6e-07]
[1740506211995,0.178724,87349.0,87348.0,6e-07]
[1740506212359,0.180724,87349.0,87348.0,0.0010006]
[1740506212481,0.171724,87349.0,87348.0,6e-07]
[1740506212685,0.173724,87349.0,87348.0,6e-07]
[1740506212996,0.177724,87349.0,87348.0,6e-07]
[1740506213406,0.171724,87349.0,87348.0,6e-07]
[1740506213917,0.173724,87349.0,87348.0,0.0010006]
[1740506214140,0.002,87349.0,87348.0,0.01554145]
[1740506214340,0.009,87349.0,87348.0,0.19354145]
[1740506214974,0.009,87349.0,87348.0,0.51864145]
[1740506215123,0.007,87349.0,87348.0,0.51764145]
[1740506215460,0.228941,87359.0,87349.0,0.01454085]
[1740506215628,0.1725397,87365.0,87364.0,0.089]
[1740506215831,0.1725397,87365.0,87364.0,0.083]
[1740506215990,0.1725397,87365.0,87364.0,0.082]
[1740506216205,0.0008467,87365.0,87364.0,0.171]
[1740506216404,0.1725397,87365.0,87364.0,0.171]
[1740506216873,0.400599,87369.0,87368.0,0.082]
[1740506217295,0.1725188,87376.0,87375.0,0.17]
[1740506217501,0.0008478,87376.0,87375.0,0.18454085]
[1740506217750,0.0008478,87376.0,87375.0,0.50964085]
[1740506217934,0.0008478,87376.0,87375.0,0.68131385]
[1740506218172,0.0008478,87376.0,87375.0,1.27765978]
[1740506219185,0.0008478,87376.0,87375.0,1.47450731]
[1740506219305,0.0008478,87376.0,87375.0,1.52310731]
[1740506219506,0.0008478,87376.0,87375.0,1.52810731]
[1740506219726,0.0008478,87376.0,87375.0,1.53510731]
[1740506219931,0.0008478,87376.0,87375.0,1.52810731]
[1740506220170,0.0008478,87376.0,87375.0,1.53010731]
[1740506220616,0.0008478,87376.0,87375.0,1.52310731]
[1740506221023,7e-05,87404.0,87394.0,0.419936]
[1740506221221,7e-05,87404.0,87394.0,1.52622853]
[1740506221755,0.00073345,87395.0,87394.0,1.229605]
[1740506222144,0.00073345,87395.0,87394.0,1.401241]
[1740506222351,0.00073345,87395.0,87394.0,1.229605]
[1740506223110,0.00073345,87395.0,87394.0,1.236605]
[1740506223432,0.00073345,87395.0,87394.0,1.229605]
[1740506223631,0.00073345,87395.0,87394.0,1.067605]
[1740506223829,0.00073345,87395.0,87394.0,1.021805]
[1740506224033,0.00073345,87395.0,87394.0,1.115805]
[1740506224615,0.17236745,87395.0,87394.0,0.182]
[1740506224948,0.17236745,87395.0,87394.0,0.094]
[1740506225350,0.17236745,87395.0,87394.0,0.013]
[1740506225551,0.17236745,87395.0,87394.0,0.006]
[1740506225764,0.00073345,87395.0,87389.0,0.081]
[1740506226114,0.228855,87392.0,87389.0,0.081]
[1740506226309,0.171644,87390.0,87389.0,0.081]
[1740506226511,0.00073345,87395.0,87394.0,0.088]
[1740506226718,0.17236745,87395.0,87394.0,0.169]
[1740506226958,0.17236745,87395.0,87394.0,0.081]
[1740506227144,0.171644,87390.0,87389.0,0.007]
[1740506227350,0.171644,87390.0,87389.0,0.004]
[1740506228171,0.171644,87390.0,87389.0,0.085]
[1740506228693,0.171644,87390.0,87389.0,0.173]
[1740506228979,0.05222239,87413.0,87395.0,0.081]
[1740506229161,0.17164,87392.0,87391.0,0.169]
[1740506229573,0.171644,87390.0,87389.0,0.091]
[1740506229788,0.171644,87390.0,87389.0,0.081]
[1740506229945,0.171648,87388.0,87387.0,0.081]
[1740506230160,0.171648,87388.0,87387.0,0.0979]
[1740506230496,0.17165,87387.0,87386.0,0.081]
[1740506231979,0.171644,87390.0,87389.0,0.081]
[1740506232643,0.228856,87392.0,87387.0,0.003]
[1740506232644,0.171648,87388.0,87387.0,0.084]
[1740506233320,0.171648,87388.0,87387.0,0.081]
[1740506233723,0.228857,87391.0,87389.0,0.081]
[1740506233936,0.171644,87390.0,87389.0,0.081]
[1740506235780,0.228835,87400.0,87364.0,0.00160214]
[1740506235781,0.228839,87398.0,87395.0,0.081]
[1740506235979,0.03441,87418.0,87399.0,0.081]
[1740506236180,0.171624,87400.0,87399.0,0.081]
[1740506237519,0.171632,87396.0,87395.0,0.002]
[1740506237724,0.171671,87376.0,87357.0,0.5366]
[1740506237999,0.171671,87376.0,87375.0,0.0826926]
[1740506238838,0.171671,87376.0,87375.0,0.0016926]
[1740506239080,0.171671,87376.0,87375.0,6e-07]
[1740506239312,0.2575042,87376.0,87375.0,6e-07]
[1740506239803,0.206096,87376.0,87375.0,6e-07]
[1740506240036,0.171707,87358.0,87357.0,0.081]
[1740506240704,0.171724,87349.0,87348.0,0.0810006]
[1740506243151,0.171724,87349.0,87348.0,0.0870006]
[1740506243358,0.171724,87349.0,87348.0,0.0810006]
[1740506243571,0.171724,87349.0,87348.0,0.0870006]
[1740506244953,0.171724,87349.0,87348.0,0.0060006]
[1740506245157,0.171724,87349.0,87348.0,0.0870006]
[1740506247435,0.171724,87349.0,87348.0,0.10450066]
[1740506247928,0.012,87390.0,87358.0,0.081]
[1740506248139,0.171679,87372.0,87371.0,0.169]
[1740506248346,0.228846,87395.0,87381.0,0.088]
[1740506248603,0.17166,87382.0,87381.0,0.088]
[1740506249032,0.228877,87384.0,87378.0,0.081]
[1740506249210,0.171689,87367.0,87366.0,0.081]
[1740506249509,0.171677,87373.0,87372.0,0.081]
[1740506249867,0.17135487,87373.0,87372.0,0.081]
[1740506250759,0.228894,87377.0,87372.0,0.169]
[1740506250964,0.228846,87395.0,87388.0,0.088]
[1740506251151,0.171646,87389.0,87388.0,0.169]
[1740506251584,0.171646,87389.0,87388.0,0.167]
[1740506251995,0.1724796,87396.0,87395.0,0.081]
[1740506252146,0.0008476,87396.0,87395.0,0.167]
[1740506252354,0.0008476,87396.0,87395.0,0.1837]
[1740506252944,0.1724796,87396.0,87395.0,0.1837]
[1740506253183,0.0008476,87396.0,87395.0,0.1897]
[1740506253536,0.0008476,87396.0,87395.0,0.19824085]
[1740506253922,0.0008476,87396.0,87395.0,0.20924085]
[1740506254127,0.0008476,87396.0,87395.0,0.53434085]
[1740506254539,0.0008476,87396.0,87395.0,0.70197485]
[1740506254743,0.0008476,87396.0,87395.0,0.53034085]
[1740506255830,0.0008476,87396.0,87395.0,0.52334085]
[1740506256014,0.0008476,87396.0,87395.0,0.53034085]
[1740506256615,0.0008476,87396.0,87395.0,0.53534085]
[1740506256817,0.0008476,87396.0,87395.0,0.69997485]
[1740506257020,0.0008476,87396.0,87395.0,0.70697485]
[1740506257386,0.0008476,87396.0,87395.0,1.23657485]
[1740506257572,0.0008476,87396.0,87395.0,1.52952238]
[1740506257788,0.0008476,87396.0,87395.0,1.14414085]
[1740506258143,0.0008476,87396.0,87395.0,1.31577485]
[1740506258344,0.0008476,87396.0,87395.0,1.31077485]
[1740506258550,0.0008476,87396.0,87395.0,1.13914085]
[1740506258752,0.0008476,87396.0,87395.0,1.15014085]
[1740506259152,0.0008476,87396.0,87395.0,1.15314085]
[1740506260006,0.0008476,87396.0,87395.0,1.15714085]
[1740506260206,0.0008476,87396.0,87395.0,1.32877485]
[1740506260348,0.0008476,87396.0,87395.0,1.15714085]
[1740506260546,0.0008476,87396.0,87395.0,1.32877485]
[1740506260862,0.0008476,87396.0,87395.0,1.15714085]
[1740506261304,0.00065795,87396.0,87395.0,1.15714085]
[1740506261828,0.00065795,87396.0,87395.0,0.45534085]
[1740506261989,0.00065795,87396.0,87395.0,0.54134085]
[1740506262209,0.00065795,87396.0,87395.0,0.82672238]
[1740506262372,0.00065795,87396.0,87395.0,0.90892238]
[1740506263988,0.00065795,87396.0,87395.0,0.79517485]
[1740506264160,0.00065795,87396.0,87395.0,0.62354085]
[1740506264371,0.00065795,87396.0,87395.0,0.79517485]
[1740506264748,0.00065795,87396.0,87395.0,0.90892238]
[1740506264949,0.0141633,87437.0,87413.0,0.338599]
[1740506265288,0.0141633,87437.0,87413.0,1.64240798]